bitfinex/quotes_SOLUSD_20240708
["timestamp","ask_amount","ask_price","bid_price","bid_amount"]
[1720425907119,22.6618,133.98,133.87,7.4697]
[1720425907327,22.6618,133.98,133.88,20.17]
[1720425907528,22.6618,133.98,133.88,0.17]
[1720425907830,100.0,133.97,133.85,2.994294]
[1720425908011,100.0,133.97,133.82,18.6807]
[1720425908212,100.0,133.94,133.82,18.6807]
[1720425908826,100.0,133.96,133.82,18.6807]
[1720425909522,69.1618,133.98,133.82,18.6807]
[1720425909720,69.1618,133.98,133.83,20.0]
[1720425909923,69.1618,133.98,133.86,7.4704]
[1720425910431,69.1618,133.98,133.87,0.17]
[1720425910621,69.1618,133.98,133.86,20.17]
[1720425910827,100.0,133.97,133.83,20.0]
[1720425911013,100.0,133.95,133.83,20.0]
[1720425911214,100.0,133.95,133.81,26.1552]
[1720425911416,100.0,133.97,133.83,7.472]
[1720425912024,69.3318,133.98,133.85,7.4709]
[1720425912227,69.1618,133.98,133.86,0.17]
[1720425912423,100.0,133.97,133.86,0.17]
[1720425912614,100.0,133.97,133.81,26.1549]
[1720425912810,69.1618,133.98,133.82,0.17]
[1720425913016,100.0,133.97,133.83,7.472]
[1720425913236,100.0,133.97,133.84,0.17]
[1720425913445,69.1618,133.98,133.85,7.471]
[1720425913640,69.1618,133.98,133.84,0.17]
[1720425913834,69.1618,133.98,133.85,26.1468]
[1720425914141,69.1618,133.98,133.86,0.17]
[1720425914315,69.1618,133.98,133.86,7.6404]
[1720425914914,69.1618,133.98,133.87,7.4699]
[1720425915114,69.1618,133.98,133.88,0.17]
[1720425915445,22.6618,133.98,133.88,7.6392]
[1720425915737,22.6618,133.98,133.88,0.17]
[1720425915939,22.6618,133.98,133.87,20.17]
[1720425916138,22.6618,133.98,133.87,0.17]
[1720425916343,16.2068,133.98,133.87,18.8438]
[1720425916532,16.2068,133.98,133.89,7.4688]
[1720425916736,16.2068,133.98,133.9,0.17]
[1720425917422,0.1,133.99,133.9,18.8406]
[1720425917638,0.867826,134.06,133.97,18.6605]
[1720425917945,0.867826,134.06,134.04,7.4599]
[1720425918162,0.867826,134.06,134.05,0.17]
[1720425918332,0.867826,134.06,134.02,2.992037]
[1720425919262,16.6634,134.05,133.91,8.86531068]
[1720425919557,16.6634,134.05,133.91,2.99443]
[1720425919558,46.5,134.02,133.91,2.99443]
[1720425919761,46.5,134.02,133.85,6.2435]
[1720425919927,46.5,134.02,133.89,18.6708]
[1720425920261,100.0,134.01,133.87,7.4697]
[1720425920420,100.0,133.99,133.86,18.676]
[1720425920742,100.0,133.99,133.86,26.1464]
[1720425920940,100.0,134.01,133.86,26.1464]
[1720425921247,46.5,133.98,133.84,7.4711]
[1720425921438,46.5,133.98,133.83,18.6802]
[1720425921439,46.5,133.98,133.86,7.4704]
[1720425921655,100.0,134.01,133.82,37.3612]
[1720425921825,39.2134,134.05,133.82,37.3612]
[1720425921826,100.0,133.99,133.82,37.3612]
[1720425922027,46.5,134.03,133.86,26.146]
[1720425922028,100.0,134.01,133.86,26.146]
[1720425922250,100.0,134.01,133.86,18.6761]
[1720425922657,16.6634,134.05,133.93,7.4663]
[1720425922948,16.6634,134.05,133.94,0.17]
[1720425923130,16.6634,134.05,133.94,7.6359]
[1720425923459,16.6634,134.05,133.94,0.17]
[1720425924047,16.6634,134.05,133.96,18.6621]
[1720425924261,16.6634,134.05,133.97,0.17]
[1720425925438,16.6634,134.05,133.96,0.17]
[1720425925736,16.6634,134.05,133.95,0.17]
[1720425925944,16.6634,134.05,133.89,37.46558689]
[1720425925945,16.6634,134.05,133.89,18.6713]
[1720425926147,16.6634,134.05,133.91,7.4673]
[1720425926452,16.6634,134.05,133.92,7.4671]
[1720425926674,16.6634,134.05,133.89,18.6713]
[1720425926845,100.0,134.04,133.89,18.6713]
[1720425927052,100.0,134.04,133.89,26.1396]
[1720425927238,100.0,134.04,133.91,7.4675]
[1720425927675,16.6634,134.05,133.92,18.6678]
[1720425927958,16.6634,134.05,133.92,26.1349]
[1720425928249,16.6634,134.05,133.89,18.6715]
[1720425928451,22.55,134.04,133.93,0.17]
[1720425928827,122.55,134.03,133.88,18.6722]
[1720425929033,169.05,134.03,133.88,18.6722]
[1720425929274,169.05,134.03,133.89,7.4686]
[1720425929576,16.6634,134.05,133.9,59.8892]
[1720425929737,16.6634,134.05,134.0,18.6566]
[1720425929934,16.6634,134.05,133.94,22.55]
[1720425930133,16.6634,134.05,133.97,18.6603]
[1720425930345,16.6634,134.05,133.98,0.17]
[1720425930756,16.6634,134.05,133.97,18.8307]
[1720425930963,16.6634,134.05,133.98,21.48829659]
[1720425931130,0.867826,134.06,134.04,7.4604]
[1720425931456,0.867826,134.06,134.05,7.6299]
[1720425932160,0.867826,134.06,134.05,30.1799]
[1720425932456,0.867826,134.06,134.05,27.6299]
[1720425932638,0.687826,134.06,134.05,27.6299]
[1720425932837,0.687826,134.06,133.99,24.782]
[1720425933046,0.687826,134.06,134.0,20.0]
[1720425933246,0.687826,134.06,134.02,18.6531]
[1720425933447,0.687826,134.06,134.03,20.0]
[1720425933850,0.687826,134.06,134.03,27.4604]
[1720425934037,0.687826,134.06,134.03,20.0]
[1720425934240,0.687826,134.06,134.05,7.4599]
[1720425934433,0.687826,134.06,134.04,7.4604]
[1720425934660,0.687826,134.06,134.03,42.55]
[1720425934661,0.687826,134.06,134.03,20.0]
[1720425934852,0.687826,134.06,134.04,0.17]
[1720425935032,0.687826,134.06,134.04,7.6302]
[1720425935238,0.687826,134.06,134.05,7.4599]
[1720425935448,0.687826,134.06,134.04,0.17]
[1720425936031,0.687826,134.06,134.05,9.18556431]
[1720425936237,0.687826,134.06,134.05,21.89566431]
[1720425936731,0.687826,134.06,134.05,9.35556431]
[1720425936935,0.687826,134.06,134.05,21.89566431]
[1720425937143,0.687826,134.06,134.05,29.35556431]
[1720425937355,0.687826,134.06,134.05,9.35556431]
[1720425937571,0.687826,134.06,133.99,17.528832]
[1720425937736,0.687826,134.06,134.01,7.4618]
[1720425937940,0.687826,134.06,134.02,27.4612]
[1720425938134,0.687826,134.06,134.0,21.72630821]
[1720425938456,0.687826,134.06,134.05,7.4599]
[1720425938637,0.687826,134.06,134.05,27.4599]
[1720425939166,0.687826,134.06,134.05,20.0]
[1720425939345,0.687826,134.06,134.05,7.4599]
[1720425939549,0.687826,134.06,134.05,50.0099]
[1720425940448,0.687826,134.06,134.05,27.4599]
[1720425940659,0.687826,134.06,134.05,20.17]
[1720425940851,0.687826,134.06,134.05,7.4599]
[1720425941050,0.687826,134.06,134.05,20.0]
[1720425941353,0.687826,134.06,134.03,18.6523]
[1720425942344,0.687826,134.06,134.01,1.72617939]
[1720425942651,0.687826,134.06,133.99,7.4632]
[1720425942848,16.757626,134.06,133.98,7.4637]
[1720425944363,16.757626,134.06,133.99,7.4631]
[1720425945358,16.757626,134.06,134.01,7.4618]
[1720425945669,16.757626,134.06,134.02,0.17]
[1720425945886,16.757626,134.06,134.01,18.6544]
[1720425946169,16.757626,134.06,134.02,0.17]
[1720425946340,0.687826,134.06,134.02,0.17]
[1720425946663,0.687826,134.06,134.05,7.4599]
[1720425946978,0.687826,134.06,134.02,1.89605059]
[1720425947145,0.687826,134.06,134.02,21.89605059]
[1720425947347,0.687826,134.06,134.02,20.17]
[1720425947854,0.687826,134.06,134.02,0.17]
[1720425948591,0.687826,134.06,134.0,18.6562]
[1720425948871,0.687826,134.06,134.0,26.1188]
[1720425949070,0.687826,134.06,134.0,18.6562]
[1720425949269,0.687826,134.06,133.99,7.4631]
[1720425949489,15.0705,134.04,133.95,7.465]
[1720425949788,15.0705,134.04,133.92,37.3339]
[1720425949947,15.0705,134.04,133.97,7.4643]
[1720425950275,15.0705,134.04,133.96,26.1261]
[1720425950569,15.0705,134.04,133.97,7.4641]
[1720425950867,15.0705,134.04,133.98,7.4637]
[1720425951371,15.0705,134.04,133.96,18.6613]
[1720425951559,15.0705,134.04,133.97,27.4643]
[1720425952270,15.0705,134.04,133.98,7.4636]
[1720425952470,15.0705,134.04,133.98,0.17]
[1720425953575,15.0705,134.04,134.01,7.4619]
[1720425953756,15.0705,134.04,134.02,0.17]
[1720425954657,15.0705,134.04,134.01,0.17]
[1720425954851,15.0705,134.04,133.98,8.11226603]
[1720425955050,15.0705,134.04,133.99,20.17]
[1720425955365,15.0705,134.04,134.0,20.0]
[1720425955568,15.0705,134.04,134.01,0.17]
[1720425955971,15.0705,134.04,134.02,7.4613]
[1720425956149,15.0705,134.04,134.01,0.17]
[1720425956565,15.0705,134.04,134.0,20.0]
[1720425956755,15.0705,134.04,133.96,7.4648]
[1720425956965,15.0705,134.04,133.97,7.4642]
[1720425957651,15.0705,134.04,133.96,7.4648]
[1720425957848,15.0705,134.04,133.93,24.27721049]
[1720425958048,15.0705,134.04,134.0,7.4622]
[1720425958272,15.0705,134.04,133.98,18.6584]
[1720425958582,15.0705,134.04,133.99,7.4631]
[1720425958948,15.0705,134.04,134.0,7.4626]
[1720425959178,0.687826,134.06,134.01,18.8251]
[1720425959366,0.687826,134.06,134.02,7.4615]
[1720425959671,0.687826,134.06,134.03,0.17]
[1720425959872,0.687826,134.06,134.01,0.17]
[1720425960450,0.687826,134.06,134.03,18.6522]
[1720425960655,0.687826,134.06,134.01,7.632]
[1720425960885,0.687826,134.06,133.96,37.3243]
[1720425961068,0.687826,134.06,133.98,7.4636]
[1720425961374,0.687826,134.06,133.99,20.17]
[1720425961769,0.687826,134.06,134.01,18.6544]
[1720425961970,0.687826,134.06,133.99,7.6331]
[1720425962154,0.687826,134.06,134.0,20.0]
[1720425962359,0.687826,134.06,134.01,7.4621]
[1720425962554,0.687826,134.06,134.02,0.17]
[1720425963279,0.687826,134.06,134.02,18.8231]
[1720425963574,0.687826,134.06,134.03,7.4609]
[1720425963784,0.687826,134.06,134.02,18.8231]
[1720425963999,0.687826,134.06,134.0,20.0]
[1720425964558,0.687826,134.06,133.99,18.6577]
[1720425964973,0.687826,134.06,133.96,18.6614]
[1720425965178,0.687826,134.06,133.96,26.1262]
[1720425965675,0.687826,134.06,133.97,7.4642]
[1720425965867,0.687826,134.06,133.99,18.658]
[1720425966066,0.687826,134.06,133.99,26.1211]
[1720425966270,21.7261,134.09,134.05,7.4599]
[1720425966473,21.7261,134.09,134.03,18.6518]
[1720425966674,15.1565,134.09,134.04,20.0]
[1720425966874,15.1565,134.09,134.07,7.4583]
[1720425967064,15.1565,134.09,134.08,0.17]
[1720425967263,15.1565,134.09,134.08,7.6282]
[1720425967470,0.1,134.09,134.08,7.6282]
[1720425967891,2.700003,134.1,134.09,26.1017]
[1720425968107,2.700003,134.1,134.09,68.6517]
[1720425968472,1.23e-06,134.1,134.09,116.68733785]
[1720425969294,122.65,134.29,134.15,59.77938544]
[1720425969295,15.6872176,134.24,134.15,59.77938544]
[1720425969595,15.6872176,134.24,134.21,26.0778]
[1720425969900,15.6872176,134.24,134.22,0.17]
[1720425970301,0.0443176,134.24,134.23,7.4498]
[1720425970678,0.0443176,134.24,134.21,26.0774]
[1720425970880,0.0443176,134.24,134.22,0.17]
[1720425971286,0.0443176,134.24,134.15,10.065732]
[1720425971481,0.0443176,134.24,134.22,18.626]
[1720425971794,0.0443176,134.24,134.19,7.4517]
[1720425971984,0.0443176,134.24,134.19,7.452]
[1720425972177,0.0443176,134.24,134.21,18.6267]
[1720425972373,0.0443176,134.24,134.23,7.4498]
[1720425972591,0.0443176,134.24,134.23,7.6198]
[1720425972773,0.0443176,134.24,134.18,10.065732]
[1720425972974,0.0443176,134.24,134.19,20.0]
[1720425973176,0.0443176,134.24,134.2,0.17]
[1720425973590,0.0443176,134.24,134.15,18.6351]
[1720425974084,0.0443176,134.24,134.16,1.72424941]
[1720425974283,0.0443176,134.24,134.2,7.4515]
[1720425974604,0.0443176,134.24,134.16,1.72424941]
[1720425974801,15.8397,134.23,134.16,1.72424941]
[1720425975100,15.8397,134.23,134.16,9.17784941]
[1720425975282,15.8397,134.23,134.18,7.4526]
[1720425975487,0.0443176,134.24,134.16,24.27424941]
[1720425975686,0.0443176,134.24,134.22,18.6257]
[1720425975980,0.0443176,134.24,134.22,26.0756]
[1720425976181,0.0443176,134.24,134.23,0.17]
[1720425976395,0.0443176,134.24,134.23,7.6198]
[1720425977395,0.0443176,134.24,134.23,30.1698]
[1720425977605,0.0443176,134.24,134.23,50.1698]
[1720425977782,16.1256,134.29,134.28,7.4471]
[1720425977783,0.1,134.29,134.28,7.4471]
[1720425978290,0.1,134.29,134.28,49.9971]
[1720425978636,0.867826,134.46,134.37,7.4421]
[1720425978897,0.867826,134.46,134.31,6.4037]
[1720425978898,16.028326,134.46,134.31,6.4037]
[1720425979104,16.028326,134.46,134.32,21.72219551]
[1720425979407,16.028326,134.46,134.34,18.6084]
[1720425979617,16.028326,134.46,134.35,7.4427]
[1720425979925,16.028326,134.46,134.33,1.7220673]
[1720425979926,100.0,134.45,134.33,1.7220673]
[1720425980127,100.0,134.45,134.26,46.31]
[1720425980128,131.028326,134.46,134.28,20.0]
[1720425980298,100.0,134.43,134.27,26.0659]
[1720425980503,100.0,134.43,134.27,20.34123683]
[1720425980704,100.0,134.43,134.29,7.4465]
[1720425980996,100.0,134.43,134.27,20.34123683]
[1720425981202,100.0,134.43,134.31,26.0587]
[1720425981203,20.0,134.42,134.31,26.0587]
[1720425981513,46.31,134.44,134.32,7.4448]
[1720425981718,100.0,134.44,134.27,20.34073683]
[1720425981917,100.0,134.44,134.28,0.17]
[1720425982219,16.028326,134.46,134.3,7.4458]
[1720425982443,16.028326,134.46,134.31,0.17]
[1720425982644,16.028326,134.46,134.31,7.6151]
[1720425982940,100.0,134.44,134.27,20.34193683]
[1720425983117,100.0,134.44,134.28,0.17]
[1720425983316,116.028326,134.46,134.3,7.4459]
[1720425983537,16.028326,134.46,134.31,0.17]
[1720425983841,16.028326,134.46,134.28,20.17]
[1720425984047,16.028326,134.46,134.31,18.6135]
[1720425984254,16.028326,134.46,134.33,7.4438]
[1720425984443,116.028326,134.46,134.34,0.17]
[1720425984736,16.028326,134.46,134.34,7.6136]
[1720425984937,16.028326,134.46,134.34,0.17]
[1720425985116,16.028326,134.46,134.36,18.6054]
[1720425985316,16.028326,134.46,134.37,0.17]
[1720425985517,16.028326,134.46,134.38,18.6028]
[1720425985733,16.028326,134.46,134.39,0.17]
[1720425986237,16.028326,134.46,134.39,7.6108]
[1720425986419,16.028326,134.46,134.39,0.17]
[1720425986932,0.867826,134.46,134.39,0.17]
[1720425987311,0.867826,134.46,134.39,1.64566633]
[1720425987541,0.867826,134.46,134.41,7.4399]
[1720425987744,0.867826,134.46,134.42,1.64568694]
[1720425987922,0.867826,134.46,134.43,1.47557716]
[1720425988423,0.867826,134.46,134.36,22.55]
[1720425988424,0.867826,134.46,134.41,20.0]
[1720425988730,0.867826,134.46,134.43,26.0344]
[1720425988935,0.867826,134.46,134.44,7.4377]
[1720425989134,0.867826,134.46,134.42,0.17]
[1720425989325,0.867826,134.46,134.44,0.17]
[1720425990039,0.867826,134.46,134.43,0.17]
[1720425990239,0.867826,134.46,134.45,7.4377]
[1720425990439,0.867826,134.46,134.45,7.6077]
[1720425990815,0.867826,134.46,134.45,27.6077]
[1720425991019,0.1,134.49,134.48,7.436]
[1720425991238,0.1,134.49,134.48,27.436]
[1720425992234,16.6278,134.61,134.48,20.0]
[1720425992416,0.04418529,134.64,134.49,28.96680314]
[1720425992619,0.04418529,134.64,134.55,26.0125]
[1720425992822,0.04418529,134.64,134.55,46.0125]
[1720425993032,0.04418529,134.64,134.55,38.5804]
[1720425993229,0.04418529,134.64,134.55,0.17]
[1720425993743,0.04418529,134.64,134.56,0.17]
[1720425994333,0.04418529,134.64,134.56,26.0096]
[1720425994539,0.04418529,134.64,134.58,7.4305]
[1720425994756,0.04418529,134.64,134.58,7.6005]
[1720425994961,0.04418529,134.64,134.58,27.6005]
[1720425995125,0.04418529,134.64,134.58,30.579568]
[1720425995762,0.787826,134.6,134.59,7.4299]
[1720425996051,0.787826,134.6,134.59,36.39670314]
[1720425996780,0.04418529,134.64,134.63,7.4277]
[1720425997058,0.1,134.69,134.6,8.96680314]
[1720425997225,0.1,134.69,134.58,2.979068]
[1720425998046,0.1,134.69,134.59,1.71874062]
[1720425998428,0.867826,134.73,134.72,25.9798]
[1720425998629,15.3171,134.83,134.77,7.4198]
[1720425998941,15.3171,134.83,134.65,75.4699]
[1720425999247,15.3171,134.83,134.66,0.17]
[1720425999248,46.31,134.8,134.66,0.17]
[1720425999432,22.483,134.78,134.59,1.71874062]
[1720425999943,22.483,134.78,134.7,7.4238]
[1720426000138,22.483,134.78,134.69,18.5598]
[1720426000331,22.483,134.78,134.64,18.5671]
[1720426000520,22.483,134.78,134.65,27.4265]
[1720426000722,22.483,134.78,134.65,20.0]
[1720426000944,22.483,134.78,134.67,18.5627]
[1720426001145,22.483,134.78,134.69,7.4243]
[1720426001335,22.483,134.78,134.7,18.5591]
[1720426001645,16.2247,134.78,134.71,1.71720957]
[1720426002143,15.0053,134.86,134.73,18.5547]
[1720426002345,15.0053,134.86,134.74,0.17]
[1720426002547,15.0053,134.86,134.75,1.71669982]
[1720426002863,15.0053,134.86,134.77,7.4195]
[1720426003024,0.1,134.89,134.84,18.5399]
[1720426003226,0.1,134.89,134.76,0.17]
[1720426003423,0.1,134.89,134.81,7.4173]
[1720426003724,1.111634,134.97,134.82,126.03787859]
[1720426004037,1.111634,134.97,134.9,18.5313]
[1720426004376,1.111634,134.97,134.91,20.0]
[1720426004523,1.111634,134.97,134.85,25.9532]
[1720426004868,1.111634,134.97,134.86,20.0]
[1720426005264,1.111634,134.97,134.85,20.0]
[1720426005468,1.111634,134.97,134.91,18.5298]
[1720426005801,1.111634,134.97,134.83,20.0]
[1720426005802,1.111634,134.97,134.87,18.5355]
[1720426006100,1.111634,134.97,134.86,8.97524981]
[1720426006313,1.111634,134.97,134.87,20.0]
[1720426006599,1.111634,134.97,134.87,27.4144]
[1720426006768,1.111634,134.97,134.83,8.97524981]
[1720426006769,1.111634,134.97,134.82,18.5424]
[1720426007206,1.111634,134.97,134.85,18.5383]
[1720426007367,1.111634,134.97,134.78,8.97524981]
[1720426007569,1.111634,134.97,134.79,1.71619037]
[1720426007773,101.111634,134.97,134.81,7.4174]
[1720426007973,1.111634,134.97,134.83,18.5407]
[1720426008192,1.111634,134.97,134.82,1.71580849]
[1720426008377,1.111634,134.97,134.83,8.97524981]
[1720426008747,1.111634,134.97,134.82,1.71580849]
[1720426009205,101.111634,134.97,134.82,1.71580849]
[1720426009379,22.8696,134.96,134.82,1.71580849]
[1720426009581,100.0,134.94,134.82,1.71580849]
[1720426009783,22.8696,134.96,134.75,46.31]
[1720426010098,22.8696,134.96,134.81,18.5436]
[1720426010404,22.8696,134.96,134.82,8.97524981]
[1720426010567,22.8696,134.96,134.82,27.51724981]
[1720426010774,37.8696,134.96,134.78,18.5483]
[1720426011085,22.8696,134.96,134.78,18.5483]
[1720426011285,22.8696,134.96,134.79,8.97524981]
[1720426012382,22.8696,134.96,134.83,7.4165]
[1720426012594,22.8696,134.96,134.82,7.4172]
[1720426012904,22.8696,134.96,134.83,27.5864]
[1720426013103,22.8696,134.96,134.83,0.17]
[1720426013298,22.8696,134.96,134.83,18.7117]
[1720426013869,22.8696,134.96,134.86,18.5374]
[1720426014185,22.8696,134.96,134.87,0.17]
[1720426014386,22.8696,134.96,134.89,25.9466]
[1720426014569,22.8696,134.96,134.9,0.17]
[1720426014773,16.3634,134.96,134.9,7.5827]
[1720426014972,16.3634,134.96,134.9,0.17]
[1720426015198,16.3634,134.96,134.92,18.5293]
[1720426015373,1.111634,134.97,134.94,7.4106]
[1720426015575,1.111634,134.97,134.93,0.17]
[1720426015576,1.111634,134.97,134.93,7.5812]
[1720426015775,1.111634,134.97,134.92,18.5293]
[1720426015972,1.111634,134.97,134.88,25.9478]
[1720426016199,1.111634,134.97,134.92,18.5292]
[1720426016388,1.111634,134.97,134.93,0.17]
[1720426016600,1.111634,134.97,134.94,30.0]
[1720426016773,1.111634,134.97,134.95,0.17]
[1720426016975,1.111634,134.97,134.94,30.0]
[1720426017203,0.611634,134.97,134.94,30.0]
[1720426017386,0.611634,134.97,134.96,7.4096]
[1720426017575,16.4822,135.03,134.96,30.0]
[1720426017918,16.4822,135.03,134.97,40.23640161]
[1720426018113,16.4822,135.03,134.98,1.71377464]
[1720426018411,0.04405047,135.05,135.02,7.4059]
[1720426018618,0.04405047,135.05,135.03,25.9194]
[1720426018901,0.04405047,135.05,135.02,37.4062]
[1720426019124,0.04405047,135.05,135.02,55.9208]
[1720426019277,0.04405047,135.05,135.02,30.0]
[1720426019610,0.04405047,135.05,135.03,18.513]
[1720426019792,0.04405047,135.05,135.03,30.0]
[1720426019978,0.04405047,135.05,135.03,37.4057]
[1720426020176,0.04405047,135.05,135.03,30.0]
[1720426021410,0.04405047,135.05,134.99,18.5188]
[1720426021911,0.04405047,135.05,134.93,91.98050205]
[1720426021912,0.04405047,135.05,134.93,8.4413888]
[1720426022103,0.04405047,135.05,134.94,1.71428265]
[1720426022411,0.04405047,135.05,135.01,7.4063]
[1720426022724,0.04405047,135.05,134.95,8.97524981]
[1720426022882,0.04405047,135.05,134.99,18.5196]
[1720426023375,0.04405047,135.05,135.0,20.0]
[1720426023576,15.6629,135.09,135.0,8.97524981]
[1720426023775,15.6629,135.09,134.98,20.0]
[1720426023776,0.1,135.09,135.08,7.403]
[1720426024189,0.1,135.09,135.05,18.5105]
[1720426024401,0.1,135.09,135.08,7.403]
[1720426024610,16.3679008,135.15,135.08,20.0]
[1720426024817,16.3679008,135.15,135.09,20.17]
[1720426025001,1.2093008,135.15,135.09,20.17]
[1720426025198,1.2093008,135.15,135.09,20.0]
[1720426025403,1.2093008,135.15,135.05,54.7513888]
[1720426025404,1.2093008,135.15,135.1,9.14524981]
[1720426025587,1.2093008,135.15,135.07,20.0]
[1720426025803,1.2093008,135.15,135.02,16.367901]
[1720426026098,15.7881,135.14,134.96,18.5228]
[1720426026284,6.3266,135.1,134.94,1.71428265]
[1720426026686,6.3266,135.1,134.94,10.15567145]
[1720426026995,6.3266,135.1,134.94,1.71428265]
[1720426026996,100.0,135.05,134.94,1.71428265]
[1720426027313,115.2049,135.03,134.84,18.5394]
[1720426027486,15.2049,135.03,134.88,18.5348]
[1720426027689,15.2049,135.03,134.85,7.4153]
[1720426027914,46.31,135.0,134.84,18.54]
[1720426028130,0.17,134.99,134.85,7.4156]
[1720426028429,0.17,134.99,134.81,0.1]
[1720426028630,144.7718,134.98,134.81,0.1]
[1720426028787,144.7718,134.98,134.83,18.5413]
[1720426028788,20.0,134.97,134.83,18.5413]
[1720426028987,46.31,134.96,134.81,7.5176]
[1720426029188,46.31,134.96,134.81,0.1]
[1720426029387,46.31,134.96,134.85,7.4154]
[1720426029608,22.2218,134.98,134.82,18.5426]
[1720426029821,137.72,134.97,134.81,0.1]
[1720426030037,6.2461,134.91,134.75,7.76274794]
[1720426030233,6.2461,134.91,134.79,7.4189]
[1720426030390,6.2461,134.91,134.75,10.15808862]
[1720426030588,6.2461,134.91,134.83,18.5412]
[1720426031096,6.2461,134.91,134.79,18.5464]
[1720426031347,28.7961,134.91,134.75,1.71669982]
[1720426031550,22.55,134.88,134.71,18.6575]
[1720426031841,22.55,134.88,134.74,18.5537]
[1720426032348,122.55,134.88,134.74,18.5537]
[1720426032568,16.0243,134.86,134.74,25.9752]
[1720426032840,16.0243,134.86,134.77,18.5495]
[1720426033051,16.0243,134.86,134.73,37.1085]
[1720426033255,16.0243,134.86,134.76,18.5509]
[1720426033460,16.0243,134.86,134.74,7.4216]
[1720426034125,16.0243,134.86,134.72,18.5557]
[1720426034444,46.31,134.84,134.72,18.5557]
[1720426034658,46.31,134.84,134.74,7.4216]
[1720426034946,46.31,134.84,134.73,7.4222]
[1720426035348,6.0263,134.83,134.71,0.1]
[1720426035512,106.1963,134.83,134.71,0.1]
[1720426035717,106.1963,134.83,134.66,7.4261]
[1720426035718,100.0,134.79,134.66,7.4261]
[1720426035913,52.667,134.76,134.61,7.5284]
[1720426036151,52.667,134.76,134.61,0.1]
[1720426036152,46.31,134.72,134.61,0.1]
[1720426036317,28.907,134.76,134.61,0.1]
[1720426036318,16.0113,134.71,134.61,0.1]
[1720426036825,16.0113,134.71,134.61,7.5284]
[1720426037144,16.0113,134.71,134.61,7.5287]
[1720426037455,16.0113,134.71,134.63,7.4275]
[1720426037616,16.0113,134.71,134.63,18.5691]
[1720426037813,16.0113,134.71,134.65,7.4266]
[1720426038040,16.0113,134.71,134.63,18.5691]
[1720426038244,16.0113,134.71,134.61,0.1]
[1720426038739,16.0113,134.71,134.64,18.5678]
[1720426038949,16.0113,134.71,134.61,0.1]
[1720426038950,6.357,134.76,134.63,60.3627417]
[1720426039143,15.8447,134.78,134.7,18.5597]
[1720426039527,15.8447,134.78,134.65,37.06572781]
[1720426039722,15.8447,134.78,134.69,7.4239]
[1720426039923,15.8447,134.78,134.66,66.32462842]
[1720426040225,15.8447,134.78,134.71,7.4229]
[1720426040426,6.2524,134.82,134.78,7.4193]
[1720426040631,15.5422,134.85,134.72,0.17]
[1720426040871,15.5422,134.85,134.74,18.5529]
[1720426041025,15.5422,134.85,134.75,0.17]
[1720426041227,15.5422,134.85,134.71,18.5582]
[1720426041530,15.5422,134.85,134.72,20.17]
[1720426042428,15.5422,134.85,134.79,7.4189]
[1720426042625,15.5422,134.85,134.8,18.5459]
[1720426042847,15.5422,134.85,134.8,25.9642]
[1720426043169,15.5422,134.85,134.81,7.5877]
[1720426043470,15.5422,134.85,134.84,7.4161]
[1720426043643,15.5422,134.85,134.79,0.17]